fUSD/lending_fUSD_20250205
["ID","MTS","AMOUNT","RATE_DAILY","PERIOD"]
[351713320,1738761062537,-611.12,9.615e-05,2]
[351713321,1738761062546,-516.03,9.615e-05,2]
[351713322,1738761062556,-3001.44,9.615e-05,2]
[351713323,1738761062565,-500.0,9.615e-05,2]
[351713324,1738761062574,-500.0,9.615e-05,2]
[351713325,1738761062583,-500.0,9.615e-05,2]
[351713326,1738761062593,-500.0,9.615e-05,2]
[351713327,1738761062603,-500.0,9.615e-05,2]
[351713328,1738761062612,-508.3,9.615e-05,2]
[351713329,1738761062621,-500.0,9.615e-05,2]
[351713330,1738761062632,-500.0,9.615e-05,2]
[351713331,1738761062641,-500.0,9.615e-05,2]
[351713332,1738761062651,-500.0,9.615e-05,2]
[351713333,1738761062662,-500.0,9.615e-05,2]
[351713334,1738761062671,-500.0,9.615e-05,2]
[351713335,1738761062681,-500.0,9.615e-05,2]
[351713336,1738761062691,-500.0,9.615e-05,2]
[351713337,1738761062701,-500.0,9.615e-05,2]
[351713338,1738761062710,-500.0,9.615e-05,2]
[351713339,1738761062720,-500.0,9.615e-05,2]
[351713340,1738761062729,-500.0,9.615e-05,2]
[351713341,1738761062739,-570.82,9.615e-05,2]
[351713342,1738761062749,-593.53,9.615e-05,2]
[351713343,1738761062758,-500.0,9.615e-05,2]
[351713344,1738761062767,-500.0,9.615e-05,2]
[351713345,1738761062777,-540.9,9.615e-05,2]
[351713346,1738761062786,-500.0,9.615e-05,2]
[351713347,1738761062795,-452.13,9.615e-05,2]
[351713348,1738761062804,-596.31,9.615e-05,2]
[351713349,1738761062814,-500.0,9.615e-05,2]
[351713350,1738761062823,-665.33,9.615e-05,2]
[351713351,1738761062834,-502.33,9.615e-05,2]
[351713352,1738761062843,-500.0,9.615e-05,2]
[351713353,1738761062852,-500.0,9.615e-05,2]
[351713354,1738761062862,-500.0,9.615e-05,2]
[351713355,1738761062872,-500.0,9.615e-05,2]
[351713356,1738761062883,-722.02,9.615e-05,2]
[351713357,1738761063064,-500.0,9.615e-05,2]
[351713358,1738761063074,-500.0,9.615e-05,2]
[351713359,1738761063084,-500.0,9.615e-05,2]
[351713360,1738761063093,-500.0,9.615e-05,2]
[351713361,1738761063103,-500.0,9.615e-05,2]
[351713362,1738761063113,-500.0,9.615e-05,2]
[351713363,1738761063122,-500.0,9.615e-05,2]
[351713364,1738761063131,-500.0,9.615e-05,2]
[351713365,1738761063141,-962.61,9.615e-05,2]
[351713366,1738761063151,-500.0,9.615e-05,2]
[351713367,1738761063160,-500.0,9.615e-05,2]
[351713368,1738761063170,-621.51846484,9.615e-05,2]
[351713369,1738761063180,-500.0,9.616e-05,2]
[351713370,1738761063190,-500.0,9.616e-05,2]
[351713371,1738761063200,-500.0,9.616e-05,2]
[351713372,1738761063209,-476.22,9.616e-05,2]
[351713373,1738761063219,-500.0,9.616e-05,2]
[351713374,1738761063229,-500.0,9.616e-05,2]
[351713375,1738761063238,-500.0,9.616e-05,2]
[351713376,1738761063247,-500.0,9.616e-05,2]
[351713377,1738761063257,-153.06,9.616e-05,2]
[351713378,1738761063265,-500.0,9.616e-05,2]
[351713379,1738761063275,-500.0,9.616e-05,2]
[351713380,1738761063284,-500.0,9.616e-05,2]
[351713381,1738761063294,-500.0,9.616e-05,2]
[351713382,1738761063303,-500.0,9.616e-05,2]
[351713383,1738761063312,-500.0,9.616e-05,2]
[351713384,1738761063321,-330.96,9.616e-05,2]
[351713385,1738761063331,-355.65014134,9.616e-05,2]
[351713386,1738761063340,-500.0,9.616e-05,2]
[351713387,1738761063349,-500.0,9.616e-05,2]
[351713388,1738761063358,-500.0,9.616e-05,2]
[351713389,1738761063368,-500.0,9.616e-05,2]
[351713390,1738761063377,-500.0,9.616e-05,2]
[351713391,1738761063389,-203.16,9.616e-05,2]
[351713392,1738761063399,-326.4,9.616e-05,2]
[351713393,1738761063410,-500.0,9.616e-05,2]
[351713394,1738761063419,-500.0,9.616e-05,2]
[351713395,1738761063429,-500.0,9.616e-05,2]
[351713396,1738761063438,-532.98,9.616e-05,2]
[351713397,1738761063447,-597.06,9.616e-05,2]
[351713398,1738761063457,-575.76,9.616e-05,2]
[351713399,1738761063466,-479.44,9.616e-05,2]
[351713400,1738761063476,-500.0,9.616e-05,2]
[351713401,1738761063485,-500.0,9.616e-05,2]
[351713402,1738761063495,-500.0,9.616e-05,2]
[351713403,1738761063504,-500.0,9.616e-05,2]
[351713404,1738761063513,-500.0,9.616e-05,2]
[351713405,1738761063522,-500.0,9.616e-05,2]
[351713406,1738761063532,-500.0,9.616e-05,2]
[351713407,1738761063541,-500.0,9.616e-05,2]
[351713408,1738761063550,-500.0,9.616e-05,2]
[351713409,1738761063560,-495.0,9.616e-05,2]
[351713410,1738761063569,-554.68,9.616e-05,2]
[351713411,1738761063579,-500.0,9.616e-05,2]
[351713412,1738761063589,-500.0,9.616e-05,2]
[351713413,1738761063598,-500.0,9.616e-05,2]
[351713414,1738761063618,-500.0,9.616e-05,2]
[351713415,1738761063627,-500.0,9.616e-05,2]
[351713416,1738761063638,-500.0,9.616e-05,2]
[351713417,1738761063647,-441.4,9.616e-05,2]
[351713418,1738761063656,-500.0,9.616e-05,2]
[351713419,1738761063666,-500.0,9.616e-05,2]
[351713420,1738761063675,-500.0,9.616e-05,2]
[351713421,1738761063685,-226.75,9.616e-05,2]
[351713422,1738761063694,-500.0,9.616e-05,2]
[351713423,1738761063703,-500.0,9.616e-05,2]
[351713424,1738761063713,-637.65,9.616e-05,2]
[351713425,1738761063723,-500.0,9.616e-05,2]
[351713426,1738761063732,-500.0,9.616e-05,2]
[351713427,1738761063742,-500.0,9.616e-05,2]
[351713428,1738761063752,-500.0,9.616e-05,2]
[351713429,1738761063762,-500.0,9.616e-05,2]
[351713430,1738761063771,-337.74,9.616e-05,2]
[351713431,1738761063781,-500.0,9.616e-05,2]
[351713432,1738761063790,-500.55,9.616e-05,2]
[351713433,1738761063800,-500.0,9.616e-05,2]
[351713434,1738761063809,-492.28,9.616e-05,2]
[351713435,1738761063819,-500.0,9.616e-05,2]
[351713436,1738761063828,-537.56,9.616e-05,2]
[351713437,1738761063837,-1371.550187,9.616e-05,2]
[351713438,1738761063847,-1254.978718,9.616e-05,2]
[351713439,1738761063856,-500.0,9.616e-05,2]
[351713440,1738761063866,-500.0,9.616e-05,2]
[351713441,1738761063875,-500.0,9.616e-05,2]
[351713442,1738761063885,-500.0,9.616e-05,2]
[351713443,1738761063894,-500.0,9.616e-05,2]
[351713444,1738761063905,-500.0,9.616e-05,2]
[351713445,1738761063915,-500.0,9.616e-05,2]
[351713446,1738761063925,-500.0,9.616e-05,2]
[351713447,1738761063935,-792.83,9.616e-05,2]
[351713448,1738761063946,-754.14,9.616e-05,2]
[351713449,1738761063955,-522.52,9.616e-05,2]
[351713450,1738761063965,-500.0,9.616e-05,2]
[351713451,1738761063976,-798.67,9.616e-05,2]
[351713452,1738761063989,-1055.64,9.616e-05,2]
[351713453,1738761063999,-732.85,9.616e-05,2]
[351713454,1738761064009,-2320.89,9.616e-05,2]
[351713455,1738761064019,-687.64,9.616e-05,2]
[351713456,1738761064029,-1733.96,9.616e-05,2]
[351713457,1738761064040,-625.86,9.616e-05,2]
[351713458,1738761064050,-514.8,9.616e-05,2]
[351713459,1738761064061,-500.0,9.616e-05,2]
[351713460,1738761064071,-1454.98,9.616e-05,2]
[351713461,1738761064080,-500.0,9.616e-05,2]
[351713462,1738761064090,-673.66,9.616e-05,2]
[351713463,1738761064099,-500.0,9.616e-05,2]
[351713464,1738761064110,-542.44,9.616e-05,2]
[351713465,1738761064120,-500.0,9.616e-05,2]
[351713466,1738761064130,-500.0,9.616e-05,2]
[351713467,1738761064143,-500.0,9.616e-05,2]
[351713468,1738761064153,-1149.1,9.616e-05,2]
[351713469,1738761064163,-500.0,9.616e-05,2]
[351713470,1738761064174,-500.0,9.616e-05,2]
[351713471,1738761064184,-500.0,9.616e-05,2]
[351713472,1738761064194,-500.0,9.616e-05,2]
[351713473,1738761064205,-868.42,9.616e-05,2]
[351713474,1738761064216,-599.75,9.617e-05,2]
[351713475,1738761064227,-500.0,9.617e-05,2]
[351713476,1738761064236,-621.99,9.617e-05,2]
[351713477,1738761064246,-570.11,9.617e-05,2]
[351713478,1738761064256,-500.0,9.617e-05,2]
[351713479,1738761064265,-500.0,9.617e-05,2]
[351713480,1738761064276,-500.0,9.617e-05,2]
[351713481,1738761064286,-614.09,9.617e-05,2]
[351713482,1738761064295,-500.0,9.617e-05,2]
[351713483,1738761064306,-500.0,9.617e-05,2]
[351713484,1738761064315,-500.0,9.617e-05,2]
[351713485,1738761064325,-500.0,9.617e-05,2]
[351713486,1738761064335,-500.0,9.751e-05,2]
[351713487,1738761064344,-500.0,9.751e-05,2]
[351713488,1738761064354,-144.55804922,9.751e-05,2]
[351713489,1738761064802,-500.0,9.204e-05,2]
[351713490,1738761064811,-500.0,9.204e-05,2]
[351713491,1738761064821,-500.0,9.204e-05,2]
[351713492,1738761064831,-500.0,9.34e-05,2]
[351713493,1738761064840,-500.0,9.34e-05,2]
[351713494,1738761064850,-500.70519752,9.34e-05,2]
[351713495,1738761064860,-437.66,9.341e-05,2]
[351713496,1738761064870,-500.0,9.477e-05,2]
[351713497,1738761064880,-355.44195078,9.751e-05,2]
[351713498,1738761064890,-500.0,9.751e-05,2]
[351713499,1738761064899,-500.0,9.751e-05,2]
[351713500,1738761064908,-293.66646896,9.751e-05,2]
[351713501,1738761064917,-173.86031323,9.751e-05,2]
[351713502,1738761064928,-326.13968677,9.751e-05,2]
[351713503,1738761064938,-507.11,9.751e-05,2]
[351713504,1738761064947,-500.0,9.751e-05,2]
[351713505,1738761064958,-500.0,9.751e-05,2]
[351713506,1738761064967,-500.0,9.751e-05,2]
[351713507,1738761064981,-500.0,9.751e-05,2]
[351713508,1738761064992,-270.28,9.751e-05,2]
[351713509,1738761065001,-500.0,9.751e-05,2]
[351713510,1738761065011,-500.0,9.751e-05,2]
[351713511,1738761065022,-500.0,9.751e-05,2]
[351713512,1738761065031,-657.62,9.751e-05,2]
[351713513,1738761065040,-500.0,9.751e-05,2]
[351713514,1738761065050,-500.0,9.751e-05,2]
[351713515,1738761065062,-503.31,9.751e-05,2]
[351713516,1738761065072,-500.0,9.751e-05,2]
[351713517,1738761065081,-500.0,9.751e-05,2]
[351713518,1738761065091,-361.2,9.751e-05,2]
[351713519,1738761065101,-500.0,9.751e-05,2]
[351713520,1738761065110,-525.88,9.751e-05,2]
[351713521,1738761065120,-500.0,9.751e-05,2]
[351713522,1738761065129,-500.0,9.751e-05,2]
[351713523,1738761065139,-175.52,9.751e-05,2]
[351713524,1738761065149,-223.47501481,9.751e-05,2]
[351713525,1738761065169,-500.0,9.341e-05,2]
[351713526,1738761065178,-446.51498519,9.751e-05,2]
[351713527,1738761065188,-224.11827844,9.751e-05,2]
[351713528,1738761065197,-500.0,9.751e-05,2]
[351713529,1738761065207,-357.6,9.751e-05,2]
[351713530,1738761065215,-500.0,9.751e-05,2]
[351713531,1738761065225,-666.82,9.751e-05,2]
[351713532,1738761065235,-561.6,9.751e-05,2]
[351713533,1738761065244,-188.44,9.751e-05,2]
[351713534,1738761065253,-936.15,9.751e-05,2]
[351713535,1738761065262,-500.0,9.751e-05,2]
[351713536,1738761065272,-500.0,9.751e-05,2]
[351713537,1738761065281,-500.0,9.751e-05,2]
[351713538,1738761065291,-691.79,9.751e-05,2]
[351713539,1738761065300,-500.0,9.751e-05,2]
[351713540,1738761065309,-293.16,9.751e-05,2]
[351713541,1738761065318,-500.0,9.751e-05,2]
[351713542,1738761065327,-500.0,9.751e-05,2]
[351713543,1738761065336,-500.0,9.751e-05,2]
[351713544,1738761065345,-500.0,9.751e-05,2]
[351713545,1738761065355,-500.0,9.751e-05,2]
[351713546,1738761065365,-500.0,9.751e-05,2]
[351713547,1738761065374,-500.0,9.751e-05,2]
[351713548,1738761065383,-500.0,9.751e-05,2]
[351713549,1738761065393,-500.0,9.751e-05,2]
[351713550,1738761065403,-663.97,9.751e-05,2]
[351713551,1738761065412,-500.0,9.751e-05,2]
[351713552,1738761065421,-500.0,9.751e-05,2]
[351713553,1738761065433,-548.88,9.751e-05,2]
[351713554,1738761065443,-500.0,9.751e-05,2]
[351713555,1738761065454,-500.0,9.751e-05,2]
[351713556,1738761065464,-500.0,9.751e-05,2]
[351713557,1738761065474,-500.0,9.751e-05,2]
[351713558,1738761065484,-500.0,9.751e-05,2]
[351713559,1738761065494,-693.44,9.751e-05,2]
[351713560,1738761065504,-623.0,9.751e-05,2]
[351713561,1738761065513,-500.0,9.751e-05,2]
[351713562,1738761065522,-622.6,9.751e-05,2]
[351713563,1738761065532,-500.0,9.751e-05,2]
[351713564,1738761065541,-613.86,9.751e-05,2]
[351713565,1738761065551,-500.0,9.751e-05,2]
[351713566,1738761065561,-500.0,9.751e-05,2]
[351713567,1738761065570,-500.0,9.751e-05,2]
[351713568,1738761065579,-500.0,9.751e-05,2]
[351713569,1738761065589,-500.0,9.751e-05,2]
[351713570,1738761065602,-500.0,9.751e-05,2]
[351713571,1738761065611,-159.02,9.751e-05,2]
[351713572,1738761065621,-501.3,9.751e-05,2]
[351713573,1738761065630,-500.0,9.751e-05,2]
[351713574,1738761065641,-500.0,9.751e-05,2]
[351713575,1738761065650,-500.0,9.751e-05,2]
[351713576,1738761065660,-500.0,9.751e-05,2]
[351713577,1738761065669,-500.0,9.751e-05,2]
[351713578,1738761065679,-500.0,9.751e-05,2]
[351713579,1738761065688,-500.0,9.751e-05,2]
[351713580,1738761065698,-570.0,9.751e-05,2]
[351713581,1738761065707,-500.0,9.751e-05,2]
[351713582,1738761065718,-1182.52,9.751e-05,2]
[351713583,1738761065727,-542.85,9.751e-05,2]
[351713584,1738761065736,-681.12,9.751e-05,2]
[351713585,1738761065745,-500.0,9.751e-05,2]
[351713586,1738761065755,-500.0,9.751e-05,2]
[351713587,1738761065764,-653.47,9.751e-05,2]
[351713588,1738761065772,-806.18,9.751e-05,2]
[351713589,1738761065782,-500.0,9.751e-05,2]
[351713590,1738761065948,-545.53,9.751e-05,2]
[351713591,1738761065958,-500.0,9.751e-05,2]
[351713592,1738761065968,-1589.07,9.751e-05,2]
[351713593,1738761065977,-573.34,9.751e-05,2]
[351713594,1738761065991,-500.0,9.751e-05,2]
[351713595,1738761066000,-188.54561245,9.751e-05,2]
[351713596,1738761066009,-210.6,9.751e-05,2]
[351713597,1738761066019,-896.93,9.751e-05,2]
[351713598,1738761066029,-534.61,9.751e-05,2]
[351713599,1738761066039,-506.01,9.751e-05,2]
[351713600,1738761066048,-500.0,9.751e-05,2]
[351713601,1738761066058,-500.0,9.751e-05,2]
[351713602,1738761066068,-500.0,9.751e-05,2]
[351713603,1738761066077,-500.0,9.751e-05,2]
[351713604,1738761066086,-605.11,9.751e-05,2]
[351713605,1738761066096,-982.7,9.751e-05,2]
[351713606,1738761066106,-500.0,9.751e-05,2]
[351713607,1738761066115,-500.0,9.751e-05,2]
[351713608,1738761066124,-500.0,9.751e-05,2]
[351713609,1738761066134,-500.0,9.751e-05,2]
[351713610,1738761066145,-747.43,9.751e-05,2]
[351713611,1738761066155,-500.0,9.751e-05,2]
[351713612,1738761066164,-500.0,9.751e-05,2]
[351713613,1738761066173,-500.0,9.751e-05,2]
[351713614,1738761066183,-183.2,9.751e-05,2]
[351713615,1738761066193,-500.0,9.751e-05,2]
[351713616,1738761066202,-500.0,9.751e-05,2]
[351713617,1738761066211,-500.0,9.751e-05,2]
[351713618,1738761066221,-500.0,9.751e-05,2]
[351713619,1738761066230,-500.0,9.751e-05,2]
[351713620,1738761066240,-500.0,9.751e-05,2]
[351713621,1738761066249,-500.0,9.752e-05,2]
[351713622,1738761066260,-500.0,9.752e-05,2]
[351713623,1738761066269,-500.0,9.752e-05,2]
[351713624,1738761066279,-500.0,9.752e-05,2]
[351713625,1738761066288,-500.0,9.752e-05,2]
[351713626,1738761066298,-500.0,9.752e-05,2]
[351713627,1738761066308,-491.68,9.752e-05,2]
[351713628,1738761066317,-500.0,9.752e-05,2]
[351713629,1738761066328,-500.0,9.752e-05,2]
[351713630,1738761066341,-444.48,9.752e-05,2]
[351713631,1738761066352,-500.0,9.752e-05,2]
[351713632,1738761066363,-399.52,9.752e-05,2]
[351713633,1738761066373,-620.62,9.752e-05,2]
[351713634,1738761066382,-500.0,9.752e-05,2]
[351713635,1738761066391,-500.0,9.752e-05,2]
[351713636,1738761066401,-504.84488505,9.752e-05,2]
[351713637,1738761066411,-500.0,9.752e-05,2]
[351713638,1738761066420,-500.0,9.752e-05,2]
[351713639,1738761066429,-500.0,9.752e-05,2]
[351713640,1738761066438,-500.0,9.752e-05,2]
[351713641,1738761066447,-500.0,9.752e-05,2]
[351713642,1738761066457,-500.0,9.752e-05,2]
[351713643,1738761066466,-378.24,9.752e-05,2]
[351713644,1738761066475,-500.0,9.752e-05,2]
[351713645,1738761066484,-500.0,9.752e-05,2]
[351713646,1738761066494,-413.73623963,9.752e-05,2]
[351713647,1738761066507,-86.26376037,9.752e-05,2]
[351713648,1738761066516,-273.81858527,9.752e-05,2]
[351713649,1738761066528,-226.18141473,9.752e-05,2]
[351713650,1738761066537,-150.69783916,9.752e-05,2]
[351713651,1738761066548,-349.30216084,9.752e-05,2]
[351713652,1738761066557,-500.0,9.752e-05,2]
[351713653,1738761066567,-500.0,9.752e-05,2]
[351713654,1738761066576,-500.0,9.752e-05,2]
[351713655,1738761066586,-500.0,9.752e-05,2]
[351713656,1738761066595,-500.0,9.752e-05,2]
[351713657,1738761066605,-500.0,9.752e-05,2]
[351713658,1738761066651,-506.4,9.752e-05,2]
[351713659,1738761066661,-582.08,9.752e-05,2]
[351713660,1738761066670,-614.06,9.752e-05,2]
[351713661,1738761066679,-500.0,9.752e-05,2]
[351713662,1738761066689,-557.6,9.752e-05,2]
[351713663,1738761066699,-500.0,9.752e-05,2]
[351713664,1738761066708,-500.0,9.752e-05,2]
[351713665,1738761066718,-500.0,9.752e-05,2]
[351713666,1738761066728,-500.0,9.752e-05,2]
[351713667,1738761066737,-500.0,9.752e-05,2]
[351713668,1738761066746,-500.0,9.752e-05,2]
[351713669,1738761066755,-534.39,9.752e-05,2]
[351713670,1738761066765,-611.12,9.752e-05,2]
[351713671,1738761066774,-516.03,9.752e-05,2]
[351713672,1738761066783,-3001.44,9.752e-05,2]
[351713673,1738761066793,-500.0,9.752e-05,2]
[351713674,1738761066803,-500.0,9.752e-05,2]
[351713675,1738761066812,-500.0,9.752e-05,2]
[351713676,1738761066822,-500.0,9.752e-05,2]
[351713677,1738761066832,-500.0,9.752e-05,2]
[351713678,1738761066841,-508.3,9.752e-05,2]
[351713679,1738761066851,-500.0,9.752e-05,2]
[351713680,1738761066860,-500.0,9.752e-05,2]
[351713681,1738761066870,-500.0,9.752e-05,2]
[351713682,1738761066879,-500.0,9.752e-05,2]
[351713683,1738761066890,-500.0,9.752e-05,2]
[351713684,1738761066900,-500.0,9.752e-05,2]
[351713685,1738761066910,-500.0,9.752e-05,2]
[351713686,1738761066920,-500.0,9.752e-05,2]
[351713687,1738761066929,-500.0,9.752e-05,2]
[351713688,1738761066939,-500.0,9.752e-05,2]
[351713689,1738761066949,-500.0,9.752e-05,2]
[351713690,1738761066959,-500.0,9.752e-05,2]
[351713691,1738761066969,-570.82,9.752e-05,2]
[351713692,1738761066980,-593.53,9.752e-05,2]
[351713693,1738761066991,-500.0,9.752e-05,2]
[351713694,1738761067001,-500.0,9.752e-05,2]
[351713695,1738761067010,-540.9,9.752e-05,2]
[351713696,1738761067021,-500.0,9.752e-05,2]
[351713697,1738761067030,-596.31,9.752e-05,2]
[351713698,1738761067039,-500.0,9.752e-05,2]
[351713699,1738761067049,-665.33,9.752e-05,2]
[351713700,1738761067059,-502.33,9.752e-05,2]
[351713701,1738761067068,-500.0,9.752e-05,2]
[351713702,1738761067077,-500.0,9.752e-05,2]
[351713703,1738761067087,-500.0,9.752e-05,2]
[351713704,1738761067097,-500.0,9.752e-05,2]
[351713705,1738761067106,-722.02,9.752e-05,2]
[351713706,1738761067116,-500.0,9.752e-05,2]
[351713707,1738761067126,-500.0,9.752e-05,2]
[351713708,1738761067136,-298.08,9.752e-05,2]
[351713709,1738761067148,-516.32,9.752e-05,2]
[351713710,1738761067157,-500.0,9.752e-05,2]
[351713711,1738761067167,-500.0,9.752e-05,2]
[351713712,1738761067176,-500.0,9.752e-05,2]
[351713713,1738761067186,-500.0,9.752e-05,2]
[351713714,1738761067195,-962.61,9.752e-05,2]
[351713715,1738761067206,-500.0,9.752e-05,2]
[351713716,1738761067216,-500.0,9.753e-05,2]
[351713717,1738761067226,-324.72037805,9.753e-05,2]
[351713718,1738761067235,-500.0,9.753e-05,2]
[351713719,1738761067245,-500.0,9.753e-05,2]
[351713720,1738761067255,-500.0,9.753e-05,2]
[351713721,1738761067265,-500.0,9.753e-05,2]
[351713722,1738761067274,-500.0,9.753e-05,2]
[351713723,1738761067284,-500.0,9.753e-05,2]
[351713724,1738761067294,-500.0,9.753e-05,2]
[351713725,1738761067303,-500.0,9.753e-05,2]
[351713726,1738761067312,-500.0,9.753e-05,2]
[351713727,1738761067322,-500.0,9.753e-05,2]
[351713728,1738761067331,-500.0,9.753e-05,2]
[351713729,1738761067340,-500.0,9.753e-05,2]
[351713730,1738761067349,-500.0,9.753e-05,2]
[351713731,1738761067359,-500.0,9.753e-05,2]
[351713732,1738761067368,-500.0,9.753e-05,2]
[351713733,1738761067378,-500.0,9.753e-05,2]
[351713734,1738761067388,-500.0,9.753e-05,2]
[351713735,1738761067397,-500.0,9.753e-05,2]
[351713736,1738761067407,-575.76,9.753e-05,2]
[351713737,1738761067416,-500.0,9.753e-05,2]
[351713738,1738761067425,-517.04,9.753e-05,2]
[351713739,1738761067434,-500.0,9.753e-05,2]
[351713740,1738761067443,-500.0,9.753e-05,2]
[351713741,1738761067452,-328.14,9.753e-05,2]
[351713742,1738761067461,-500.0,9.753e-05,2]
[351713743,1738761067471,-576.96,9.753e-05,2]
[351713744,1738761067481,-500.0,9.753e-05,2]
[351713745,1738761067490,-168.54,9.753e-05,2]
[351713746,1738761067499,-500.0,9.753e-05,2]
[351713747,1738761067509,-609.45,9.753e-05,2]
[351713748,1738761067518,-500.0,9.753e-05,2]
[351713749,1738761067528,-500.0,9.753e-05,2]
[351713750,1738761067537,-500.0,9.753e-05,2]
[351713751,1738761067546,-500.0,9.753e-05,2]
[351713752,1738761067555,-500.0,9.753e-05,2]
[351713753,1738761067567,-500.0,9.753e-05,2]
[351713754,1738761067576,-350.76,9.753e-05,2]
[351713755,1738761067586,-530.04,9.753e-05,2]
[351713756,1738761067596,-500.0,9.753e-05,2]
[351713757,1738761067606,-500.0,9.753e-05,2]
[351713758,1738761067617,-500.0,9.753e-05,2]
[351713759,1738761067626,-537.56,9.753e-05,2]
[351713760,1738761067636,-1371.550187,9.753e-05,2]
[351713761,1738761067646,-1254.978718,9.753e-05,2]
[351713762,1738761067656,-210.65,9.753e-05,2]
[351713763,1738761067665,-165.666491,9.753e-05,2]
[351713764,1738761067674,-500.0,9.753e-05,2]
[351713765,1738761067683,-500.0,9.753e-05,2]
[351713766,1738761067693,-500.0,9.753e-05,2]
[351713767,1738761067703,-500.0,9.753e-05,2]
[351713768,1738761067712,-500.0,9.753e-05,2]
[351713769,1738761067723,-500.0,9.753e-05,2]
[351713770,1738761067733,-500.0,9.753e-05,2]
[351713771,1738761067742,-792.83,9.753e-05,2]
[351713772,1738761067752,-754.14,9.753e-05,2]
[351713773,1738761067763,-522.52,9.753e-05,2]
[351713774,1738761067773,-232.3,9.753e-05,2]
[351713775,1738761067782,-798.67,9.753e-05,2]
[351713776,1738761067793,-1055.64,9.753e-05,2]
[351713777,1738761067804,-732.85,9.753e-05,2]
[351713778,1738761067813,-2320.89,9.753e-05,2]
[351713779,1738761067822,-687.64,9.753e-05,2]
[351713780,1738761067831,-1733.96,9.753e-05,2]
[351713781,1738761067840,-625.86,9.753e-05,2]
[351713782,1738761067849,-514.8,9.753e-05,2]
[351713783,1738761067858,-500.0,9.753e-05,2]
[351713784,1738761067867,-1454.98,9.753e-05,2]
[351713785,1738761067876,-500.0,9.753e-05,2]
[351713786,1738761067885,-673.66,9.753e-05,2]
[351713787,1738761067895,-500.0,9.753e-05,2]
[351713788,1738761067904,-542.44,9.753e-05,2]
[351713789,1738761067914,-181.43,9.753e-05,2]
[351713790,1738761067923,-500.0,9.753e-05,2]
[351713791,1738761067932,-500.0,9.753e-05,2]
[351713792,1738761067941,-1149.1,9.753e-05,2]
[351713793,1738761067950,-500.0,9.753e-05,2]
[351713794,1738761067960,-500.0,9.753e-05,2]
[351713795,1738761067970,-500.0,9.753e-05,2]
[351713796,1738761067986,-500.0,9.753e-05,2]
[351713797,1738761067995,-868.42,9.753e-05,2]
[351713798,1738761068005,-599.75,9.754e-05,2]
[351713799,1738761068013,-500.0,9.754e-05,2]
[351713800,1738761068023,-621.99,9.754e-05,2]
[351713801,1738761068033,-570.11,9.754e-05,2]
[351713802,1738761068042,-500.0,9.754e-05,2]
[351713803,1738761068051,-500.0,9.754e-05,2]
[351713804,1738761068060,-500.0,9.754e-05,2]
[351713805,1738761068070,-614.09,9.754e-05,2]
[351713806,1738761068079,-500.0,9.754e-05,2]
[351713807,1738761068089,-500.0,9.754e-05,2]
[351713808,1738761068098,-500.0,9.754e-05,2]
[351713809,1738761068107,-500.0,9.754e-05,2]
[351713810,1738761068117,-1268.0,9.789e-05,2]
[351713811,1738761068126,-2023.0,9.789e-05,2]
[351713812,1738761068136,-234.783,9.789e-05,2]
[351713813,1738761068146,-566.0,9.789e-05,2]
[351713814,1738761068156,-1439.019,9.789e-05,2]
[351713815,1738761068165,-782.0,9.789e-05,2]
[351713816,1738761068175,-1324.0,9.789e-05,2]
[351713817,1738761068185,-3911.0,9.789e-05,2]
[351713818,1738761068195,-150.0,9.789e-05,2]
[351713819,1738761068206,-536.206,9.789e-05,2]